bitfinex/quotes_BTCUSD_20240729
["timestamp","ask_amount","ask_price","bid_price","bid_amount"]
[1722235518318,0.75259585,69925.0,69924.0,0.420234]
[1722235518452,0.89760165,69925.0,69924.0,0.420234]
[1722235518663,0.75259585,69925.0,69924.0,0.420234]
[1722235519260,0.72714921,69925.0,69924.0,0.420234]
[1722235519460,0.75137124,69925.0,69924.0,0.420234]
[1722235521190,0.7738217,69925.0,69924.0,0.420234]
[1722235521391,0.75137124,69925.0,69924.0,0.420234]
[1722235523205,0.75156911,69925.0,69924.0,0.420234]
[1722235524617,0.77401957,69925.0,69924.0,0.420234]
[1722235525019,0.54520357,69925.0,69924.0,0.420234]
[1722235525436,0.77401957,69925.0,69924.0,0.420234]
[1722235525639,0.75156911,69925.0,69924.0,0.420234]
[1722235527586,0.75156911,69925.0,69924.0,0.357534]
[1722235528302,1.05818511,69925.0,69924.0,0.357534]
[1722235528519,1.47735597,69925.0,69924.0,0.357534]
[1722235528738,1.48925043,69925.0,69924.0,0.357534]
[1722235528950,1.71585785,69925.0,69924.0,0.357534]
[1722235529301,1.71585785,69925.0,69924.0,0.350534]
[1722235529523,1.71585785,69925.0,69924.0,0.342534]
[1722235529870,1.80375125,69925.0,69924.0,0.345534]
[1722235530043,1.71585785,69925.0,69924.0,0.345534]
[1722235530838,1.71585785,69925.0,69924.0,0.344534]
[1722235531205,1.92719496,69925.0,69924.0,0.342534]
[1722235531538,1.93119496,69925.0,69924.0,0.342534]
[1722235531715,2.07429435,69925.0,69924.0,0.342534]
[1722235531914,1.82885146,69925.0,69924.0,0.342534]
[1722235532117,1.93617305,69925.0,69924.0,0.343534]
[1722235532340,1.73183825,69925.0,69924.0,0.344534]
[1722235532539,1.69775207,69925.0,69924.0,0.344534]
[1722235532742,1.93611321,69925.0,69924.0,0.343534]
[1722235533157,1.74728743,69925.0,69924.0,0.343534]
[1722235533460,1.75428743,69925.0,69924.0,0.344534]
[1722235533601,1.81493434,69925.0,69924.0,0.344534]
[1722235534274,1.81493434,69925.0,69906.0,0.000924]
[1722235534275,0.05,69913.0,69906.0,0.000924]
[1722235534572,1.346517,69907.0,69906.0,0.000924]
[1722235534889,1.507117,69907.0,69906.0,0.000924]
[1722235535011,1.530117,69907.0,69906.0,0.287024]
[1722235535711,1.681017,69907.0,69906.0,0.292024]
[1722235536537,1.530117,69907.0,69906.0,0.292024]
[1722235536774,1.613817,69907.0,69906.0,0.294024]
[1722235537074,1.069842,69907.0,69906.0,0.292024]
[1722235537479,1.069842,69907.0,69906.0,0.287024]
[1722235537681,1.082842,69907.0,69906.0,0.287024]
[1722235537880,1.132842,69907.0,69906.0,0.287024]
[1722235538314,1.76895882,69907.0,69906.0,0.287024]
[1722235538514,1.87552905,69907.0,69906.0,0.287024]
[1722235539037,1.75295882,69907.0,69906.0,0.287024]
[1722235539245,0.801213,69894.0,69893.0,0.000924]
[1722235539448,1.265593,69894.0,69893.0,0.000924]
[1722235539649,0.572425,69878.0,69877.0,0.0653]
[1722235539806,0.429554,69874.0,69873.0,0.1434]
[1722235540013,0.97022,69874.0,69873.0,0.42963]
[1722235540208,0.741237,69874.0,69873.0,0.42963]
[1722235540992,0.741237,69874.0,69873.0,0.35153]
[1722235541163,0.742237,69874.0,69873.0,0.35153]
[1722235541403,0.759537,69874.0,69873.0,0.35153]
[1722235541605,0.530554,69874.0,69873.0,0.35153]
[1722235541715,0.18708,69874.0,69873.0,0.35153]
[1722235541919,0.001,69874.0,69873.0,0.43113]
[1722235542124,0.02446703,69874.0,69873.0,0.43113]
[1722235542951,0.002,69874.0,69873.0,0.43113]
[1722235545156,0.116491,69874.0,69873.0,0.43113]
[1722235545539,0.59235826,69874.0,69873.0,0.43113]
[1722235545750,0.574457,69874.0,69873.0,0.43113]
[1722235546079,0.345474,69874.0,69873.0,0.43113]
[1722235546234,0.36794018,69874.0,69873.0,0.43113]
[1722235547032,0.36794018,69874.0,69873.0,0.432054]
[1722235548943,0.345474,69874.0,69873.0,0.432054]
[1722235551422,0.002,69874.0,69873.0,0.432054]
[1722235552183,0.002,69874.0,69873.0,0.775533]
[1722235552395,0.0244655,69874.0,69873.0,0.775533]
[1722235552713,0.002,69874.0,69873.0,0.775533]
[1722235553120,0.002,69874.0,69873.0,0.546547]
[1722235553327,0.002,69874.0,69873.0,0.432054]
[1722235554003,0.116491,69874.0,69873.0,0.432054]
[1722235554147,0.345474,69874.0,69873.0,0.352454]
[1722235554548,0.574457,69874.0,69873.0,0.352454]
[1722235555709,0.574457,69874.0,69873.0,0.287154]
[1722235556011,0.36794034,69874.0,69873.0,0.287154]
[1722235556167,0.13895734,69874.0,69873.0,0.287154]
[1722235556368,0.002,69874.0,69873.0,0.347354]
[1722235559668,0.02446589,69874.0,69873.0,0.347354]
[1722235560819,0.13895689,69874.0,69873.0,0.347354]
[1722235561024,0.36793989,69874.0,69873.0,0.287154]
[1722235561249,0.59692289,69874.0,69873.0,0.287154]
[1722235561446,0.36793989,69874.0,69873.0,0.287154]
[1722235561646,0.46793989,69874.0,69873.0,0.287154]
[1722235561893,0.46693989,69874.0,69873.0,0.287154]
[1722235562183,0.23695689,69874.0,69873.0,0.287154]
[1722235562389,0.12246589,69874.0,69873.0,0.287154]
[1722235562599,0.12246589,69874.0,69873.0,0.467847]
[1722235562600,0.02346589,69874.0,69873.0,0.467847]
[1722235562727,0.02346589,69874.0,69873.0,0.773133]
[1722235562933,0.02346589,69874.0,69873.0,0.544147]
[1722235563291,0.02346589,69874.0,69873.0,0.429654]
[1722235563499,0.02346589,69874.0,69873.0,0.544147]
[1722235563699,0.02346589,69874.0,69873.0,0.773133]
[1722235564020,0.02346589,69874.0,69873.0,0.429654]
[1722235564217,0.02346589,69874.0,69873.0,0.544147]
[1722235564370,0.02446589,69874.0,69873.0,0.544147]
[1722235564753,0.02446589,69874.0,69873.0,0.429654]
[1722235564955,0.02446589,69874.0,69873.0,0.544147]
[1722235565585,0.02446589,69874.0,69873.0,0.773133]
[1722235566031,0.02346589,69874.0,69873.0,0.773133]
[1722235566184,0.02446589,69874.0,69873.0,0.429654]
[1722235566412,0.02346589,69874.0,69873.0,0.429654]
[1722235566799,0.13795689,69874.0,69873.0,0.287154]
[1722235566929,0.13895689,69874.0,69873.0,0.287154]
[1722235567417,0.02546589,69874.0,69873.0,0.287154]
[1722235567619,0.13995689,69874.0,69873.0,0.287154]
[1722235567866,0.13083119,69874.0,69873.0,0.287154]
[1722235568232,0.115491,69874.0,69873.0,0.287154]
[1722235568429,0.344474,69874.0,69873.0,0.287154]
[1722235568705,0.573457,69874.0,69873.0,0.287154]
[1722235569488,0.572457,69874.0,69873.0,0.287154]
[1722235569691,0.572457,69874.0,69873.0,0.292154]
[1722235569892,0.573457,69874.0,69873.0,0.292154]
[1722235570334,0.572457,69874.0,69873.0,0.292154]
[1722235570745,0.573457,69874.0,69873.0,0.292154]
[1722235571085,0.673457,69874.0,69873.0,0.292154]
[1722235571310,0.7385721,69874.0,69873.0,0.292154]
[1722235571939,0.73865372,69874.0,69873.0,0.292154]
[1722235572116,0.69592419,69874.0,69873.0,0.292154]
[1722235572639,0.79101537,69874.0,69873.0,0.287154]
[1722235572839,1.10607837,69874.0,69873.0,0.287154]
[1722235573042,1.21457837,69874.0,69873.0,0.287154]
[1722235573260,1.260395,69874.0,69873.0,0.287154]
[1722235573459,1.259395,69874.0,69873.0,0.287154]
[1722235574004,1.309395,69874.0,69873.0,0.287154]
[1722235574238,1.531503,69874.0,69873.0,0.287154]
[1722235574441,1.57560239,69874.0,69873.0,0.287154]
[1722235574636,1.62560239,69874.0,69873.0,0.287154]
[1722235574838,1.67560239,69874.0,69873.0,0.287154]
[1722235575017,1.57460239,69874.0,69873.0,0.287154]
[1722235575215,1.57660239,69874.0,69873.0,0.287154]
[1722235575393,1.62660239,69874.0,69873.0,0.287154]
[1722235575592,1.67660239,69874.0,69873.0,0.287154]
[1722235575794,1.69907198,69874.0,69873.0,0.287154]
[1722235577216,1.82844233,69874.0,69873.0,0.293154]
[1722235577818,1.70007198,69874.0,69873.0,0.293154]
[1722235578437,1.69907198,69874.0,69873.0,0.287154]
[1722235579023,1.70007198,69874.0,69873.0,0.287154]
[1722235581282,2.23350936,69874.0,69873.0,0.287154]
[1722235581504,2.34500815,69874.0,69873.0,0.287154]
[1722235581912,2.37663071,69874.0,69873.0,0.287154]
[1722235582322,2.34400989,69874.0,69873.0,0.26414289]
[1722235582739,2.24639101,69874.0,69873.0,0.22372568]
[1722235582923,2.089428,69874.0,69873.0,0.22372568]
[1722235583121,2.039428,69874.0,69873.0,0.22372568]
[1722235583406,2.10484582,69874.0,69873.0,0.22372568]
[1722235583584,1.95877441,69874.0,69873.0,0.22372568]
[1722235584137,1.77140482,69874.0,69873.0,0.22372568]
[1722235584413,1.76940371,69874.0,69873.0,0.22372568]
[1722235584756,1.78340371,69874.0,69873.0,0.22372568]
[1722235584958,1.9265031,69874.0,69873.0,0.22372568]
[1722235585531,1.9405031,69874.0,69873.0,0.22372568]
[1722235585722,2.0914031,69874.0,69873.0,0.22372568]
[1722235585867,2.0774031,69874.0,69873.0,0.22372568]
[1722235586070,2.0774031,69874.0,69854.0,0.008855]
[1722235586071,1.266782,69855.0,69854.0,0.008855]
[1722235586272,1.66479971,69855.0,69854.0,0.008855]
[1722235586471,1.61479971,69855.0,69854.0,0.008855]
[1722235586841,1.6527762,69855.0,69854.0,0.008855]
[1722235587493,2.00647959,69855.0,69854.0,0.008855]
[1722235587695,2.17048913,69855.0,69854.0,0.008855]
[1722235588837,2.17048913,69855.0,69844.0,0.00104248]
[1722235588838,1.546129,69845.0,69844.0,0.00104248]
[1722235589106,1.69728318,69845.0,69844.0,1e-08]
[1722235589281,1.22676315,69845.0,69844.0,1e-08]
[1722235589784,1.01976315,69845.0,69844.0,1e-08]
[1722235590590,1.01976726,69845.0,69844.0,1e-08]
[1722235590752,1.14056289,69845.0,69844.0,1e-08]
[1722235590948,1.1405729,69845.0,69844.0,1e-08]
[1722235591155,1.03376806,69845.0,69844.0,1e-08]
[1722235591338,1.14057207,69845.0,69844.0,1e-08]
[1722235591552,1.03376806,69845.0,69844.0,1e-08]
[1722235591758,1.01976806,69845.0,69844.0,1e-08]
[1722235591960,1.02076806,69845.0,69844.0,1e-08]
[1722235592200,1.17857207,69845.0,69844.0,1e-08]
[1722235592376,1.01976806,69845.0,69844.0,1e-08]
[1722235592574,1.07732226,69845.0,69844.0,1e-08]
[1722235592833,1.08232226,69845.0,69844.0,1e-08]
[1722235593199,1.02132226,69845.0,69844.0,1e-08]
[1722235593396,1.0709322,69845.0,69844.0,1e-08]
[1722235593600,1.22308698,69845.0,69844.0,1e-08]
[1722235593800,1.22308678,69845.0,69844.0,1e-08]
[1722235594012,1.17464098,69845.0,69844.0,1e-08]
[1722235594335,1.35394098,69845.0,69844.0,1e-08]
[1722235594658,1.35238678,69845.0,69844.0,1e-08]
[1722235594934,1.57746478,69845.0,69844.0,1e-08]
[1722235595135,1.58546478,69845.0,69844.0,1e-08]
[1722235595572,1.5999462,69845.0,69844.0,1e-08]
[1722235595785,1.5985004,69845.0,69844.0,1e-08]
[1722235596012,1.59701898,69845.0,69844.0,1e-08]
[1722235596329,1.64001898,69845.0,69844.0,1e-08]
[1722235596527,1.73196535,69845.0,69844.0,1e-08]
[1722235596754,1.73041115,69845.0,69844.0,1e-08]
[1722235596955,1.65246374,69845.0,69844.0,1e-08]
[1722235597171,1.78040157,69845.0,69844.0,1e-08]
[1722235597371,1.20629252,69845.0,69844.0,1e-08]
[1722235597687,1.18484672,69845.0,69844.0,1e-08]
[1722235597938,1.18329252,69845.0,69844.0,1e-08]
[1722235599224,1.22877418,69845.0,69844.0,1e-08]
[1722235599426,1.45785218,69845.0,69844.0,1e-08]
[1722235599629,1.37187357,69845.0,69844.0,1e-08]
[1722235599987,1.37187377,69845.0,69844.0,1e-08]
[1722235600189,1.5013297,69845.0,69844.0,1e-08]
[1722235600402,1.35094631,69845.0,69844.0,1e-08]
[1722235600603,0.95629246,69845.0,69844.0,1e-08]
[1722235600806,1.11287167,69845.0,69844.0,0.13770001]
[1722235601004,1.00784666,69845.0,69844.0,0.13770001]
[1722235601780,1.11442587,69845.0,69844.0,0.13770001]
[1722235602104,1.12785018,69845.0,69844.0,0.13770001]
[1722235602270,1.12127097,69845.0,69844.0,0.06200001]
[1722235602673,1.12126946,69845.0,69844.0,0.06200001]
[1722235602999,1.22782263,69845.0,69844.0,0.06200001]
[1722235603118,1.22782046,69845.0,69844.0,0.06200001]
[1722235603320,1.21242762,69845.0,69844.0,0.06200001]
[1722235603566,1.23490791,69845.0,69844.0,0.06200001]
[1722235603722,1.18490791,69845.0,69844.0,0.06200001]
[1722235603926,1.28490791,69845.0,69844.0,0.06200001]
[1722235604173,1.28490791,69845.0,69844.0,1e-08]
[1722235604323,1.36570791,69845.0,69844.0,1e-08]
[1722235604549,1.59478591,69845.0,69844.0,1e-08]
[1722235605185,1.64478591,69845.0,69844.0,1e-08]
[1722235605341,1.59478591,69845.0,69844.0,1e-08]
[1722235606287,1.58587341,69845.0,69844.0,1e-08]
[1722235606502,1.66018366,69845.0,69844.0,1e-08]
[1722235606670,1.86596766,69845.0,69844.0,1e-08]
[1722235607072,1.117048,69837.0,69836.0,0.009217]
[1722235607279,1.43247079,69837.0,69836.0,0.009217]
[1722235607476,1.32595825,69837.0,69836.0,0.009217]
[1722235607679,1.39895825,69837.0,69836.0,0.009217]
[1722235607909,1.32595825,69837.0,69836.0,0.009217]
[1722235608080,1.37595825,69837.0,69836.0,0.009217]
[1722235608247,1.27595825,69837.0,69836.0,0.009217]
[1722235608449,1.3874428,69837.0,69836.0,0.009217]
[1722235608654,1.28095825,69837.0,69836.0,0.009217]
[1722235608855,1.47405764,69837.0,69836.0,0.009217]
[1722235609122,1.49705764,69837.0,69836.0,0.009217]
[1722235609334,1.49705764,69837.0,69814.0,0.07277556]
[1722235609335,1.178384,69825.0,69815.0,0.0762]
[1722235609532,1.178384,69825.0,69814.0,0.00123201]
[1722235609533,1.68607155,69825.0,69814.0,0.00123201]
[1722235609737,2.04574584,69825.0,69814.0,0.00123201]
[1722235609940,2.26640216,69825.0,69814.0,0.00123201]
[1722235610093,2.13866739,69825.0,69814.0,0.00123201]
[1722235610282,2.32095966,69825.0,69814.0,0.00123201]
[1722235610485,2.23315912,69825.0,69814.0,0.00123201]
[1722235610678,2.31205832,69825.0,69814.0,0.00123201]
[1722235610880,2.32096262,69825.0,69814.0,0.00123201]
[1722235611079,2.32896262,69825.0,69814.0,0.00123201]
[1722235611325,2.27896262,69825.0,69814.0,0.00123201]
[1722235611501,2.32896262,69825.0,69814.0,0.00123201]
[1722235611736,2.32896262,69825.0,69824.0,9.7e-07]
[1722235611952,2.28696262,69825.0,69824.0,9.7e-07]
[1722235612115,2.33696262,69825.0,69824.0,9.7e-07]
[1722235612451,2.69371772,69825.0,69824.0,9.7e-07]
[1722235612653,2.55833113,69825.0,69824.0,9.7e-07]
[1722235612831,1.181296,69815.0,69814.0,0.00123201]
[1722235613031,1.59137092,69815.0,69814.0,0.00123201]
[1722235613233,1.03964646,69815.0,69814.0,0.06473201]
[1722235613440,0.45266637,69815.0,69814.0,0.06473201]
[1722235613937,0.443765,69815.0,69814.0,0.06473201]
[1722235614133,0.686942,69815.0,69814.0,0.06473201]
[1722235614550,0.457765,69815.0,69814.0,0.06473201]
[1722235614967,0.443765,69815.0,69814.0,0.06473201]
[1722235615372,0.22916,69820.0,69815.0,0.0635]
[1722235615609,0.06486116,69824.0,69817.0,0.178085]
[1722235615610,0.04358775,69824.0,69817.0,0.178085]
[1722235615813,0.0025972,69824.0,69821.0,0.18612155]
[1722235615979,0.115616,69824.0,69823.0,0.0636]
[1722235616170,0.344763,69824.0,69823.0,0.0636]
[1722235616372,0.68247509,69824.0,69823.0,0.0526]
[1722235616758,0.65999,69824.0,69823.0,0.0526]
[1722235617062,0.67299,69824.0,69823.0,0.0526]
[1722235617257,0.65999,69824.0,69823.0,0.0526]
[1722235617453,0.6615442,69824.0,69823.0,0.0526]
[1722235617652,0.6605012,69824.0,69823.0,0.0526]
[1722235617912,0.7605012,69824.0,69823.0,0.0526]
[1722235618487,0.9896482,69824.0,69823.0,0.0526]
[1722235618676,0.988094,69824.0,69823.0,0.0526]
[1722235619501,0.990094,69824.0,69823.0,0.0526]
[1722235620024,1.01213292,69824.0,69823.0,0.0526]
[1722235620226,1.01213292,69824.0,69823.0,0.0406]
[1722235620432,1.01057872,69824.0,69823.0,0.0406]
[1722235620640,1.06213292,69824.0,69823.0,0.0406]
[1722235620849,1.05474799,69824.0,69823.0,0.0406]
[1722235621247,1.05477691,69824.0,69823.0,0.0406]
[1722235621471,1.05477691,69824.0,69814.0,0.00123201]
[1722235621472,0.572942,69815.0,69814.0,0.00123201]
[1722235621633,0.229171,69817.0,69814.0,0.00123201]
[1722235621838,0.08608,69820.0,69816.0,0.0819]
[1722235621839,0.114584,69818.0,69816.0,0.0819]
[1722235622037,0.343755,69817.0,69816.0,0.0819]
[1722235622336,0.572925,69817.0,69816.0,0.0819]
[1722235623062,0.572925,69817.0,69816.0,0.0859]
[1722235623270,0.572925,69817.0,69816.0,0.1486]
[1722235623736,0.572925,69817.0,69816.0,0.1446]
[1722235623937,0.343755,69817.0,69816.0,0.1506]
[1722235624293,0.572925,69817.0,69816.0,0.1506]
[1722235624498,0.343755,69817.0,69816.0,0.1506]
[1722235624861,0.59541067,69817.0,69816.0,0.1556]
[1722235624984,0.572925,69817.0,69816.0,0.1556]
[1722235625379,0.73693455,69817.0,69816.0,0.1556]
[1722235625633,0.76718016,69817.0,69816.0,0.1556]
[1722235626061,0.68183409,69817.0,69816.0,0.1556]
[1722235626776,0.91100409,69817.0,69816.0,0.1556]
[1722235627020,1.20355286,69817.0,69816.0,0.1556]
[1722235627173,1.0967924,69817.0,69816.0,0.1556]
[1722235627386,1.09679219,69817.0,69816.0,0.1556]
[1722235627563,1.09679219,69817.0,69816.0,0.005]
[1722235627766,0.888199,69815.0,69814.0,0.00123201]
[1722235627967,1.72638427,69815.0,69814.0,0.00123201]
[1722235628166,1.87689124,69815.0,69814.0,0.00123201]
[1722235628407,1.69887213,69815.0,69814.0,0.00123201]
[1722235628611,1.62638427,69815.0,69814.0,0.00123201]
[1722235628754,1.67638427,69815.0,69814.0,0.00123201]
[1722235629637,1.85450185,69815.0,69814.0,0.00123201]
[1722235629925,1.85450185,69815.0,69814.0,0.00323201]
[1722235629926,1.94656127,69815.0,69814.0,0.00323201]
[1722235630117,1.99656127,69815.0,69814.0,0.00323201]
[1722235630343,1.98765239,69815.0,69814.0,0.00323201]
[1722235630522,1.79676681,69815.0,69814.0,0.00323201]
[1722235630670,1.53066742,69815.0,69814.0,0.00323201]
[1722235630869,0.777022,69815.0,69814.0,0.14413201]
[1722235631070,0.68490329,69815.0,69814.0,0.14413201]
[1722235631274,0.78593043,69815.0,69814.0,0.14413201]
[1722235631524,0.91408029,69815.0,69814.0,0.14413201]
[1722235631743,1.14325729,69815.0,69814.0,0.14413201]
[1722235631909,0.93656786,69815.0,69814.0,0.14413201]
[1722235632666,0.82339651,69815.0,69814.0,0.14413201]
[1722235633429,0.81448808,69815.0,69814.0,0.14413201]
[1722235633812,1.13402288,69815.0,69814.0,0.14413201]
[1722235634015,1.05257407,69815.0,69814.0,0.14413201]
[1722235634789,1.0300865,69815.0,69814.0,0.14413201]
[1722235635008,1.0300865,69815.0,69814.0,0.00323201]
[1722235635246,0.8009095,69815.0,69814.0,0.00323201]
[1722235636091,0.0418875,69815.0,69814.0,0.00323201]
[1722235636292,0.11847106,69815.0,69814.0,0.34793454]
[1722235636490,0.11847106,69815.0,69814.0,0.57425]
[1722235636491,0.018,69815.0,69814.0,0.57425]
[1722235637075,0.009,69815.0,69814.0,0.57425]
[1722235637281,0.04275661,69823.0,69814.0,0.57425]
[1722235637282,0.0015542,69820.0,69818.0,0.114582]
[1722235637447,0.0015542,69820.0,69814.0,0.22918]
[1722235637448,0.0015542,69820.0,69819.0,0.096581]
[1722235638014,0.06679565,69820.0,69819.0,0.095581]
[1722235638236,0.06679565,69820.0,69817.0,0.228169]
[1722235638473,0.04431081,69820.0,69817.0,0.228169]
[1722235639029,0.04431081,69820.0,69816.0,0.114586]
[1722235639422,0.04431081,69820.0,69813.0,0.0823]
[1722235639616,0.04275661,69819.0,69813.0,0.0823]
[1722235639780,0.04432252,69818.0,69813.0,0.0823]
[1722235639981,0.04432252,69818.0,69816.0,0.0619]
[1722235640233,0.0015542,69818.0,69816.0,0.0619]
[1722235640422,0.042768,69818.0,69816.0,0.0619]
[1722235640794,0.0015542,69817.0,69816.0,0.0619]
[1722235641805,0.1813916,69817.0,69816.0,0.0759]
[1722235642098,0.0224844,69817.0,69816.0,0.0759]
[1722235642308,0.23151575,69817.0,69816.0,0.0619]
[1722235642526,0.11693057,69817.0,69816.0,0.0619]
[1722235642740,0.11793057,69817.0,69816.0,0.0759]
[1722235642951,0.09544419,69817.0,69816.0,0.0759]
[1722235643558,0.09544419,69817.0,69816.0,0.0899]
[1722235644074,0.43819919,69817.0,69816.0,0.0759]
[1722235644321,0.58183509,69817.0,69816.0,0.0759]
[1722235644471,0.35366509,69817.0,69816.0,0.0879]
[1722235644671,0.35366509,69817.0,69816.0,0.0739]
[1722235645089,0.35466509,69817.0,69816.0,0.0879]
[1722235645902,0.345755,69817.0,69816.0,0.0879]
[1722235646103,0.37715163,69817.0,69816.0,0.0879]
[1722235646413,0.58383631,69817.0,69816.0,0.026]
[1722235646615,1.48813806,69817.0,69816.0,0.026]
[1722235646839,1.49035178,69817.0,69816.0,0.026]
[1722235647037,1.51335178,69817.0,69816.0,0.026]
[1722235647622,1.51235178,69817.0,69816.0,0.014]
[1722235647796,1.167376,69815.0,69814.0,0.000924]
[1722235647972,1.30684363,69815.0,69814.0,0.000924]
[1722235648985,1.49788718,69815.0,69814.0,0.001924]
[1722235649147,1.54032826,69815.0,69814.0,0.001924]
[1722235649348,1.64281597,69815.0,69814.0,0.001924]
[1722235649599,1.66530601,69815.0,69814.0,0.001924]
[1722235649815,1.87584878,69815.0,69814.0,0.001924]
[1722235650622,1.82584878,69815.0,69814.0,0.001924]
[1722235650820,1.87584878,69815.0,69814.0,0.001924]
[1722235651028,1.66530724,69815.0,69814.0,0.001]
[1722235651225,1.90348424,69815.0,69814.0,0.002]
[1722235651467,2.11402578,69815.0,69814.0,0.002]
[1722235651666,1.98228424,69815.0,69814.0,0.002]
[1722235651868,1.93228424,69815.0,69814.0,0.002]
[1722235652071,1.99726275,69815.0,69814.0,0.002]
[1722235652271,1.99740177,69815.0,69814.0,0.002]
[1722235652628,1.94740177,69815.0,69814.0,0.002]
[1722235652831,1.99740177,69815.0,69814.0,0.002]
[1722235653620,2.04201428,69815.0,69814.0,0.002]
[1722235653848,2.01952424,69815.0,69814.0,0.002]
[1722235654715,2.17042424,69815.0,69814.0,0.002]
[1722235654922,2.34960124,69815.0,69814.0,0.00178956]
[1722235655504,2.21188934,69815.0,69814.0,0.00178956]
[1722235656176,2.16188934,69815.0,69814.0,0.00178956]
[1722235656579,2.21188934,69815.0,69814.0,0.00178956]
[1722235656781,2.25550694,69815.0,69814.0,0.00178956]
[1722235657164,2.22799861,69815.0,69814.0,0.00178956]
[1722235657367,2.34860633,69815.0,69814.0,0.00178956]
[1722235657581,2.39860633,69815.0,69814.0,0.00178956]
[1722235657765,2.39860633,69815.0,69793.0,0.00175272]
[1722235657766,1.267538,69804.0,69793.0,0.00175272]
[1722235657960,1.28051883,69804.0,69793.0,0.00175272]
[1722235658166,1.24944596,69804.0,69793.0,0.00175272]
[1722235658377,1.39373881,69804.0,69793.0,0.00175272]
[1722235658570,1.37073905,69804.0,69793.0,0.00175272]
[1722235658775,1.37073905,69804.0,69802.0,0.0653]
[1722235658989,1.37073905,69804.0,69803.0,0.01425056]
[1722235659191,1.217538,69804.0,69803.0,0.01425056]
[1722235659480,1.22644606,69804.0,69803.0,0.01425056]
[1722235660102,0.99723306,69804.0,69803.0,0.01925056]
[1722235660652,1.01972438,69804.0,69803.0,0.01925056]
[1722235660853,1.01972438,69804.0,69803.0,0.01425056]
[1722235661064,1.01972438,69804.0,69803.0,0.01025056]
[1722235661196,1.06972438,69804.0,69803.0,0.01025056]
[1722235661598,1.06972324,69804.0,69803.0,0.01025056]
[1722235661939,1.05523179,69804.0,69803.0,0.01025056]
[1722235662570,1.32133118,69804.0,69803.0,0.01025056]
[1722235662842,1.55054418,69804.0,69803.0,0.01025056]
[1722235663051,1.35744479,69804.0,69803.0,0.01025056]
[1722235663209,1.36744479,69804.0,69803.0,0.01125056]
[1722235663418,1.50614479,69804.0,69803.0,0.01125056]
[1722235663597,1.44574479,69804.0,69803.0,0.01125056]
[1722235664004,1.58884418,69804.0,69803.0,0.01125056]
[1722235664665,1.63884418,69804.0,69803.0,0.01125056]
[1722235664867,1.5788437,69804.0,69803.0,0.01025056]
[1722235665098,1.6113365,69804.0,69803.0,0.01125056]
[1722235665491,1.6613365,69804.0,69803.0,0.01125056]
[1722235665692,1.80552384,69804.0,69803.0,0.01125056]
[1722235665916,1.75552384,69804.0,69803.0,0.01125056]
[1722235666156,2.04332352,69804.0,69803.0,0.01125056]
[1722235666424,1.97083072,69804.0,69803.0,0.01125056]
[1722235666654,1.74161772,69804.0,69803.0,0.01125056]
[1722235667173,1.59743038,69804.0,69803.0,0.01125056]
[1722235667378,1.92217683,69804.0,69803.0,0.01125056]
[1722235667581,1.86417683,69804.0,69803.0,0.01125056]
[1722235667790,1.91417683,69804.0,69803.0,0.01125056]
[1722235667991,1.85543656,69804.0,69803.0,0.01125056]
[1722235668202,1.86433743,69804.0,69803.0,0.01125056]
[1722235668421,1.91433743,69804.0,69803.0,0.01125056]
[1722235668620,1.86441846,69804.0,69803.0,0.01125056]
[1722235669026,1.63720546,69804.0,69803.0,0.01125056]
[1722235669228,1.49410607,69804.0,69803.0,0.01125056]
[1722235669422,0.888441,69794.0,69793.0,0.00175272]
[1722235669635,0.99734196,69794.0,69793.0,0.00175272]
[1722235670327,1.27658796,69794.0,69793.0,0.00175272]
[1722235670535,1.22658796,69794.0,69793.0,0.00175272]
[1722235670738,1.217687,69794.0,69793.0,0.00175272]
[1722235670956,1.22658749,69794.0,69793.0,0.00475272]
[1722235671116,1.27658748,69794.0,69793.0,0.00475272]
[1722235671523,1.27658748,69794.0,69793.0,0.00575272]
[1722235671726,1.22658748,69794.0,69793.0,0.00575272]
[1722235671943,0.99734148,69794.0,69793.0,0.08395272]
[1722235672376,0.99734148,69794.0,69793.0,0.08295272]
[1722235672715,1.00834148,69794.0,69793.0,0.08395272]
[1722235673213,1.03964221,69794.0,69793.0,0.08095272]
[1722235673353,1.04964221,69794.0,69793.0,0.08195272]
[1722235673553,1.34975423,69794.0,69793.0,0.00175272]
[1722235673755,0.054,69793.0,69789.0,0.0156061]
[1722235673955,0.88818821,69790.0,69789.0,0.0156061]
[1722235674191,0.99708869,69790.0,69789.0,0.0156061]
[1722235675700,0.68174969,69790.0,69789.0,0.0968061]
[1722235676775,0.78838504,69790.0,69789.0,0.0968061]
[1722235676911,0.68174969,69790.0,69789.0,0.0968061]
[1722235677109,0.68174969,69790.0,69789.0,0.0978061]
[1722235677413,0.68174708,69790.0,69789.0,0.0968061]
[1722235677621,0.81083475,69790.0,69789.0,0.0988061]
[1722235677817,0.70424195,69790.0,69789.0,0.0988061]
[1722235678015,0.70423893,69790.0,69789.0,0.000924]
[1722235678239,0.79104002,69790.0,69789.0,0.001924]
[1722235678441,0.78948582,69790.0,69789.0,0.001924]
[1722235678687,0.70423893,69790.0,69789.0,0.001924]
[1722235678857,0.79104002,69790.0,69789.0,0.001924]
[1722235679268,0.76799095,69790.0,69789.0,0.001924]
[1722235679478,0.85407095,69790.0,69789.0,0.001924]
[1722235679686,0.76882406,69790.0,69789.0,0.001924]
[1722235679891,0.77037826,69790.0,69789.0,0.001924]
[1722235680090,0.77037783,69790.0,69789.0,0.001924]
[1722235680447,0.76937783,69790.0,69789.0,0.001924]
[1722235680648,0.76937666,69790.0,69789.0,0.001924]
[1722235680888,0.77037666,69790.0,69789.0,0.001924]
[1722235681156,0.77037666,69790.0,69789.0,0.077924]
[1722235681312,0.76882246,69790.0,69789.0,0.077924]
[1722235681826,0.85560024,69790.0,69789.0,0.077924]
[1722235682026,0.85404604,69790.0,69789.0,0.077924]
[1722235682207,0.22422446,69790.0,69789.0,0.143924]
[1722235682415,0.47753265,69790.0,69789.0,0.143924]
[1722235682585,0.26354995,69790.0,69789.0,0.143924]
[1722235682794,0.23950076,69790.0,69789.0,0.143924]
[1722235682994,0.51138051,69790.0,69789.0,0.143924]
[1722235683197,0.46875976,69790.0,69789.0,0.143924]
[1722235683399,0.23950076,69790.0,69789.0,0.143924]
[1722235683585,0.24105496,69790.0,69789.0,0.143924]